fUSD/lending_fUSD_20260419
["ID","MTS","AMOUNT","RATE_DAILY","PERIOD"]
[420814863,1776559840398,-519.01422605,9.081e-05,2]
[420814865,1776559840408,-181.08010149,9.081e-05,2]
[420814867,1776559840417,-431.90407637,9.081e-05,2]
[420814869,1776559840429,-500.0,9.083e-05,2]
[420814871,1776559840438,-151.0,9.083e-05,2]
[420814873,1776559840448,-500.0,9.138e-05,2]
[420814875,1776559840457,-151.0,9.138e-05,2]
[420814877,1776559840467,-709.90445287,9.198e-05,2]
[420815113,1776559842647,-1070.06,9.198e-05,2]
[420815136,1776559842843,-415.17054358,9.198e-05,2]
[420815139,1776559842859,-155.86500355,9.198e-05,2]
[420815141,1776559842868,-255.0,9.318e-05,2]
[420815143,1776559842877,-312.03049805,9.353e-05,2]
[420815273,1776559847446,-1318.67509578,9.353e-05,2]
[420815274,1776559847455,-167.0,9.5e-05,2]
[420815275,1776559847464,-161.0,9.5e-05,2]
[420815276,1776559847474,-161.0,9.5e-05,2]
[420815277,1776559847483,-350.0,9.567e-05,2]
[420815278,1776559847492,-88.88710422,9.587e-05,2]
[420815279,1776559847583,-261.11289578,9.587e-05,2]
[420815280,1776559847592,-151.0,9.589e-05,2]
[420815281,1776559847601,-90.79883157,9.6e-05,2]
[420815282,1776559948495,1001.0,0.00032876,120]
[420815283,1776559966880,1001.0,0.00032876,120]
[420815285,1776560102439,10000.0,0.000328,120]
[420815286,1776560102672,7939.0,0.000328,120]
[420815287,1776560212523,500.0,0.0003287,120]
[420815292,1776560780470,500.0,0.00032876,120]
[420815293,1776560780701,500.0,0.00032876,120]
[420815294,1776560791791,500.0,0.00032876,120]
[420815295,1776560792033,500.0,0.00032876,120]
[420815296,1776560792283,500.0,0.00032876,120]
[420815297,1776560792509,500.0,0.00032876,120]
[420815298,1776560792737,500.0,0.00032876,120]
[420815299,1776560793314,500.0,0.00032876,120]
[420815300,1776560793647,500.0,0.00032876,120]
[420815301,1776560794424,307.71,0.00032876,120]
[420815302,1776560853717,150.0,0.00010062,30]
[420815303,1776560963649,500.0,0.00032,120]
[420815304,1776560973850,1583.13379171,0.00032,120]
[420815305,1776560983550,1500.0,0.00032,120]
[420815306,1776560994928,1000.0,0.00032,120]
[420815318,1776561033259,-315.42809693,7.785e-05,2]
[420815319,1776561033271,-1284.57190307,7.785e-05,2]
[420815320,1776561033281,-244.83761471,7.785e-05,2]
[420815321,1776561033295,-5.16238529,7.785e-05,2]
[420815322,1776561033305,-252.0,7.785e-05,2]
[420815323,1776561033316,-2000.0,8.219e-05,2]
[420815324,1776561033326,-182.32,8.22e-05,2]
[420815325,1776561033335,-153.23,8.22e-05,2]
[420815326,1776561033346,-150.0,8.22e-05,2]
[420815327,1776561033356,-300.0,8.271e-05,2]
[420815328,1776561033366,-1200.0,8.271e-05,2]
[420815329,1776561033376,-571.05207087,8.272e-05,2]
[420815330,1776561033418,-258906.00472913,8.272e-05,2]
[420815331,1776561033429,-300.0,8.37e-05,2]
[420815332,1776561033439,-273.60960961,8.371e-05,2]
[420815333,1776561033450,-150.0,8.371e-05,2]
[420815334,1776561033460,-250.44,8.445e-05,2]
[420815335,1776561033470,-150.0,8.52e-05,2]
[420815336,1776561033480,-5000.0,8.563e-05,2]
[420815337,1776561033491,-250.0,8.563e-05,2]
[420815338,1776561033501,-300.0,8.563e-05,2]
[420815339,1776561033512,-300.0,8.563e-05,2]
[420815340,1776561033522,-300.0,8.563e-05,2]
[420815341,1776561033532,-300.0,8.563e-05,2]
[420815342,1776561033543,-300.0,8.563e-05,2]
[420815343,1776561033553,-250.0,8.563e-05,2]
[420815344,1776561033563,-14127.07,8.59e-05,2]
[420815345,1776561033573,-150.99,8.59e-05,2]
[420815346,1776561033583,-299.99,8.59e-05,2]
[420815347,1776561033594,-518.87,8.59e-05,2]
[420815348,1776561033604,-9999.99,8.59e-05,2]
[420815349,1776561033614,-4999.99,8.59e-05,2]
[420815350,1776561033624,-7183.42,8.59e-05,2]
[420815351,1776561033634,-9999.99,8.59e-05,2]
[420815352,1776561033644,-499.99,8.59e-05,2]
[420815353,1776561033653,-24999.99,8.59e-05,2]
[420815354,1776561033663,-150.0,8.605e-05,2]
[420815355,1776561033673,-150.0,8.605e-05,2]
[420815356,1776561033684,-216.41259402,8.605e-05,2]
[420815357,1776561033694,-150.0,8.605e-05,2]
[420815358,1776561033704,-150.0,8.605e-05,2]
[420815359,1776561033714,-150.0,8.605e-05,2]
[420815360,1776561033723,-150.0,8.605e-05,2]
[420815361,1776561033733,-150.0,8.605e-05,2]
[420815362,1776561033743,-150.00000001,8.605e-05,2]
[420815363,1776561033755,-150.0,8.605e-05,2]
[420815364,1776561033765,-150.0,8.605e-05,2]
[420815365,1776561033775,-150.0,8.605e-05,2]
[420815366,1776561033784,-150.0,8.605e-05,2]
[420815367,1776561033798,-150.0,8.605e-05,2]
[420815368,1776561033808,-578.20924308,8.623e-05,2]
[420815369,1776561033819,-200.0,8.623e-05,2]
[420815370,1776561033830,-695.39793187,8.623e-05,2]
[420815371,1776561033841,-1377.42282659,8.623e-05,2]
[420815372,1776561033851,-500.0,8.623e-05,2]
[420815373,1776561033861,-200.0,8.623e-05,2]
[420815374,1776561033871,-151.0,8.623e-05,2]
[420815375,1776561033881,-215.09535392,8.623e-05,2]
[420815376,1776561033891,-201.93286099,8.623e-05,2]
[420815377,1776561033901,-174.61919141,8.623e-05,2]
[420815378,1776561033911,-1000.0,8.623e-05,2]
[420815379,1776561033921,-1000.0,8.623e-05,2]
[420815380,1776561033931,-1000.0,8.623e-05,2]
[420815381,1776561033941,-1000.0,8.623e-05,2]
[420815382,1776561033951,-153.75026933,8.623e-05,2]
[420815383,1776561033960,-415.23445787,8.623e-05,2]
[420815384,1776561033971,-668.65185757,8.623e-05,2]
[420815385,1776561033980,-500.0,8.649e-05,2]
[420815386,1776561033990,-93426.08394452,8.65e-05,2]
[420815387,1776561034003,-23207.4638512,8.65e-05,2]
[420815388,1776561034013,-14618.2071133,8.653e-05,2]
[420815395,1776561038006,-638.55537377,8.653e-05,2]
[420815396,1776561038065,-1898.96099122,8.653e-05,2]
[420815397,1776561038077,-11248.67674882,8.653e-05,2]
[420815398,1776561038089,-4669.33117289,8.653e-05,2]
[420815399,1776561038099,-500.0,8.678e-05,2]
[420815400,1776561038109,-151.0,8.678e-05,2]
[420815401,1776561038119,-500.0,8.733e-05,2]
[420815402,1776561038129,-1911.47,8.738e-05,2]
[420815403,1776561038139,-150.0,8.742e-05,2]
[420815404,1776561038150,-1600.0,8.758e-05,2]
[420815405,1776561038159,-150.0,8.765e-05,2]
[420815406,1776561038169,-446.09553876,8.788e-05,2]
[420815407,1776561038186,-53.90446124,8.788e-05,2]
[420815408,1776561038195,-150.0,8.797e-05,2]
[420815409,1776561038205,-150.0,8.82e-05,2]
[420815410,1776561038214,-271.06200786,8.838e-05,2]
[420815411,1776561038224,-500.0,8.843e-05,2]
[420815412,1776561038234,-150.0,8.845e-05,2]
[420815413,1776561038243,-150.0,8.879e-05,2]
[420815414,1776561038253,-500.0,8.898e-05,2]
[420815415,1776561038263,-500.0,8.923e-05,2]
[420815416,1776561038272,-150.0,8.924e-05,2]
[420815417,1776561038283,-150.0,8.924e-05,2]
[420815418,1776561038294,-500.0,8.953e-05,2]
[420815419,1776561038303,-500.0,8.959e-05,2]
[420815420,1776561038314,-150.0,8.988e-05,2]
[420815421,1776561038325,-7000.0,9e-05,3]
[420815422,1776561038335,-500.0,9.008e-05,2]
[420815423,1776561038344,-150.0,9.015e-05,2]
[420815424,1776561038354,-86896.7218953,9.043e-05,2]
[420815425,1776561038364,-2176.6342335,9.043e-05,2]
[420815426,1776561038374,-151.0,9.043e-05,2]
[420815427,1776561038383,-151.0,9.043e-05,2]
[420815428,1776561038393,-151.0,9.043e-05,2]
[420815429,1776561038403,-151.0,9.043e-05,2]
[420815430,1776561038413,-238.561832,9.043e-05,2]
[420815431,1776561038422,-619.801084,9.043e-05,2]
[420815432,1776561038432,-619.801084,9.043e-05,2]
[420815433,1776561038442,-619.801084,9.043e-05,2]
[420815434,1776561038452,-619.801084,9.043e-05,2]
[420815435,1776561038462,-151.0,9.043e-05,2]
[420815436,1776561038472,-500.0,9.063e-05,2]
[420815437,1776561038482,-1000.0,9.078e-05,2]
[420815438,1776561038491,-150.0,9.084e-05,2]
[420815439,1776561038501,-150.0,9.084e-05,2]
[420815440,1776561038512,-420.0,9.098e-05,2]
[420815441,1776561038522,-1680.0,9.098e-05,2]
[420815442,1776561038532,-12298.05110915,9.112e-05,2]
[420815443,1776561038554,-1331.50731239,9.112e-05,2]
[420815444,1776561038584,-12011.52796861,9.112e-05,2]
[420815474,1776561039099,-5196.79863572,9.112e-05,2]
[420815475,1776561039139,-500.0,9.118e-05,2]
[420815476,1776561039149,-298.94,9.12e-05,2]
[420815477,1776561039158,-150.0,9.152e-05,2]
[420815478,1776561039172,-200.0,9.171e-05,2]
[420815479,1776561039181,-1428.38747117,9.171e-05,2]
[420815480,1776561039191,-209.40437684,9.171e-05,2]
[420815481,1776561039200,-181.08010149,9.171e-05,2]
[420815482,1776561039209,-412.11643922,9.171e-05,2]
[420815483,1776561039219,-500.0,9.173e-05,2]
[420815484,1776561039228,-150.0,9.179e-05,2]
[420815485,1776561039237,-500.0,9.197e-05,2]
[420815486,1776561039247,-3782.0,9.2e-05,2]
[420815487,1776561039256,-420.0,9.207e-05,2]
[420815488,1776561039266,-255.0,9.208e-05,2]
[420815489,1776561039275,-500.0,9.228e-05,2]
[420815490,1776561039284,-150.0,9.243e-05,2]
[420815491,1776561039294,-150.0,9.243e-05,2]
[420815492,1776561039303,-2000.0,9.247e-05,2]
[420815493,1776561039313,-747.9666299,9.248e-05,2]
[420815494,1776561039322,-150.0,9.288e-05,2]
[420815495,1776561039332,-2000.0,9.3e-05,2]
[420815496,1776561039342,-2000.0,9.3e-05,2]
[420815497,1776561039351,-1039.94657941,9.3e-05,2]
[420815498,1776561039364,-960.05342059,9.3e-05,2]
[420815499,1776561039374,-2000.0,9.3e-05,2]
[420815500,1776561039383,-3474.0,9.3e-05,2]
[420815501,1776561039394,-382.0,9.322e-05,2]
[420815502,1776561039407,-150.0,9.323e-05,2]
[420815503,1776561039417,-382.0,9.327e-05,2]
[420815504,1776561039426,-382.0,9.328e-05,2]
[420815505,1776561039436,-6494.14078224,9.335e-05,2]
[420815506,1776561039446,-382.0,9.336e-05,2]
[420815507,1776561039455,-30576.425444,9.341e-05,2]
[420815508,1776561039465,-382.0,9.343e-05,2]
[420815509,1776561039474,-382.0,9.346e-05,2]
[420815510,1776561039484,-3944.821535,9.352e-05,2]
[420815511,1776561039495,-1997.896569,9.352e-05,2]
[420815512,1776561039504,-382.0,9.361e-05,2]
[420815513,1776561039514,-150.0,9.37e-05,2]
[420815514,1776561039524,-382.0,9.384e-05,2]
[420815515,1776561039533,-382.0,9.397e-05,2]
[420815516,1776561039543,-3898.29732637,9.399e-05,2]
[420815517,1776561039553,-382.0,9.4e-05,2]
[420815518,1776561039563,-338.5070003,9.402e-05,2]
[420815519,1776561039573,-150.0,9.402e-05,2]
[420815520,1776561039582,-150.0,9.425e-05,2]
[420815521,1776561039592,-382.0,9.427e-05,2]
[420815522,1776561039601,-382.0,9.437e-05,2]
[420815523,1776561039611,-382.0,9.449e-05,2]
[420815524,1776561039620,-382.0,9.452e-05,2]
[420815525,1776561039630,-511.0,9.46e-05,2]
[420815526,1776561039642,-382.0,9.46e-05,2]
[420815527,1776561039652,-250.0,9.463e-05,2]
[420815528,1776561039662,-250.0,9.463e-05,2]
[420815529,1776561039671,-250.0,9.463e-05,2]
[420815530,1776561039681,-250.0,9.463e-05,2]
[420815531,1776561039690,-319.43,9.463e-05,2]
[420815532,1776561039699,-382.0,9.467e-05,2]
[420815533,1776561039709,-382.0,9.474e-05,2]
[420815534,1776561039719,-152.0,9.474e-05,2]
[420815535,1776561039729,-382.0,9.482e-05,2]
[420815536,1776561039739,-382.0,9.482e-05,2]
[420815537,1776561039749,-382.0,9.485e-05,2]
[420815538,1776561039759,-382.0,9.497e-05,2]
[420815539,1776561039768,-382.0,9.497e-05,2]
[420815540,1776561039778,-382.0,9.497e-05,2]
[420815541,1776561039788,-382.0,9.501e-05,2]
[420815542,1776561039798,-382.0,9.507e-05,2]
[420815543,1776561039808,-382.0,9.52e-05,2]
[420815544,1776561039818,-382.0,9.52e-05,2]
[420815545,1776561039828,-382.0,9.532e-05,2]
[420815546,1776561039838,-382.0,9.536e-05,2]
[420815547,1776561039848,-151.0,9.542e-05,2]
[420815548,1776561039858,-500.0,9.543e-05,2]
[420815549,1776561039867,-500.93469977,9.543e-05,2]
[420815550,1776561039877,-500.0,9.543e-05,2]
[420815551,1776561039887,-500.0,9.543e-05,2]
[420815552,1776561039896,-500.0,9.543e-05,2]
[420815553,1776561039906,-160.07209737,9.543e-05,2]
[420815554,1776561039915,-458.63773172,9.543e-05,2]
[420815555,1776561039925,-500.0,9.543e-05,2]
[420815556,1776561039935,-500.0,9.543e-05,2]
[420815557,1776561039944,-506.25645231,9.543e-05,2]
[420815558,1776561039954,-500.0,9.543e-05,2]
[420815559,1776561039963,-500.0,9.543e-05,2]
[420815560,1776561039973,-382.0,9.544e-05,2]
[420815561,1776561039983,-382.0,9.548e-05,2]
[420815562,1776561039992,-151.218724,9.55e-05,2]
[420815563,1776561040002,-382.0,9.561e-05,2]
[420815564,1776561040012,-150.0,9.562e-05,2]
[420815565,1776561040021,-150.0,9.562e-05,2]
[420815566,1776561040030,-150.0,9.562e-05,2]
[420815567,1776561040040,-150.0,9.562e-05,2]
[420815568,1776561040049,-220.0,9.562e-05,2]
[420815569,1776561040059,-150.0,9.562e-05,2]
[420815570,1776561040068,-150.0,9.562e-05,2]
[420815571,1776561040078,-619.801084,9.562e-05,2]
[420815572,1776561040098,-619.801084,9.562e-05,2]
[420815573,1776561040108,-619.801084,9.562e-05,2]
[420815574,1776561040118,-619.801084,9.562e-05,2]
[420815575,1776561040127,-151.0,9.562e-05,2]
[420815576,1776561040137,-382.0,9.569e-05,2]
[420815577,1776561040147,-310.0,9.569e-05,5]
[420815578,1776561040156,-546.84337055,9.569e-05,2]
[420815579,1776561040166,-250.0,9.569e-05,2]
[420815580,1776561040176,-649887.6165,9.57e-05,2]
[420815581,1776561040186,-151.0,9.57e-05,2]
[420815582,1776561040195,-151.0,9.57e-05,2]
[420815583,1776561040204,-151.0,9.57e-05,2]
[420815584,1776561040215,-619.801084,9.57e-05,2]
[420815585,1776561040226,-619.801084,9.57e-05,2]
[420815586,1776561040235,-619.801084,9.57e-05,2]
[420815587,1776561040245,-619.801084,9.57e-05,2]
[420815588,1776561040255,-151.0,9.57e-05,2]
[420815589,1776561040266,-382.0,9.573e-05,2]
[420815590,1776561040275,-382.0,9.575e-05,2]
[420815591,1776561040284,-350.0,9.58e-05,2]
[420815592,1776561040294,-382.0,9.587e-05,2]
[420815593,1776561040303,-382.0,9.588e-05,2]
[420815594,1776561040313,-151.0,9.589e-05,2]
[420815595,1776561040323,-321.0,9.589e-05,2]
[420815596,1776561040333,-161.0,9.59e-05,2]
[420815597,1776561040343,-161.0,9.59e-05,2]
[420815598,1776561040353,-161.0,9.59e-05,2]
[420815599,1776561040363,-350.0,9.606e-05,2]
[420815600,1776561040374,-150.0,9.648e-05,2]
[420815601,1776561040384,-9999.99,9.67e-05,2]
[420815602,1776561040394,-1212.3,9.67e-05,2]
[420815603,1776561040404,-29332.03,9.67e-05,2]
[420815604,1776561040414,-22068.17,9.67e-05,2]
[420815605,1776561040423,-152.0,9.672e-05,2]
[420815606,1776561040433,-1531.0,9.672e-05,2]
[420815607,1776561040442,-304.02215058,9.672e-05,2]
[420815608,1776561040452,-1531.0,9.672e-05,2]
[420815609,1776561040462,-1528.0,9.672e-05,2]
[420815610,1776561040471,-166.68,9.678e-05,2]
[420815611,1776561040481,-200.0,9.719e-05,2]
[420815612,1776561040493,-1481.23780761,9.719e-05,2]
[420815613,1776561040505,-252.75987798,9.719e-05,2]
[420815614,1776561040515,-187.78006525,9.719e-05,2]
[420815615,1776561040525,-1600.0,9.731e-05,2]
[420815616,1776561040535,-151.0,9.8e-05,2]
[420815617,1776561040545,-151.0,9.8e-05,2]
[420815618,1776561040555,-151.0,9.8e-05,2]
[420815619,1776561040564,-619.801084,9.8e-05,2]
[420815620,1776561040574,-619.801084,9.8e-05,2]
[420815621,1776561040584,-619.801084,9.8e-05,2]
[420815622,1776561040594,-619.801084,9.8e-05,2]
[420815623,1776561040603,-159.03,9.877e-05,2]
[420815624,1776561040613,-14100.0,9.9e-05,3]
[420815625,1776561040623,-521.93775805,9.904e-05,2]
[420815626,1776561040633,-250.0,9.936e-05,2]
[420815627,1776561040642,-206.0,9.989e-05,2]
[420815628,1776561040653,-206.0,9.989e-05,2]
[420815629,1776561040663,-206.0,9.989e-05,2]
[420815630,1776561040672,-206.0,9.989e-05,2]
[420815631,1776561040683,-206.0,9.989e-05,2]
[420815632,1776561040694,-206.0,9.989e-05,2]
[420815633,1776561040708,-206.0,9.989e-05,2]
[420815634,1776561040719,-206.0,9.989e-05,2]
[420815635,1776561040729,-206.0,9.989e-05,2]
[420815636,1776561040739,-151.0,0.0001,2]
[420815637,1776561040749,-151.0,0.0001,2]
[420815638,1776561040759,-200.0,0.0001,2]
[420815639,1776561040769,-500.0,0.0001,2]
[420815640,1776561040779,-151.0,0.0001,2]
[420815641,1776561040789,-500.0,0.0001,2]
[420815642,1776561040799,-151.0,0.0001,2]
[420815643,1776561040809,-500.0,0.0001,2]
[420815644,1776561040819,-151.0,0.0001,2]
[420815645,1776561040829,-500.0,0.0001,2]
[420815646,1776561040839,-151.0,0.0001,2]
[420815647,1776561040849,-151.0,0.0001,2]
[420815648,1776561040859,-500.0,0.0001,2]
[420815649,1776561040869,-151.0,0.0001,2]
[420815650,1776561040879,-500.0,0.0001,2]
[420815651,1776561040889,-151.0,0.0001,2]
[420815652,1776561040899,-500.0,0.0001,2]
[420815653,1776561040909,-151.0,0.0001,2]
[420815654,1776561040919,-500.0,0.0001,2]
[420815655,1776561040931,-151.0,0.0001,2]
[420815656,1776561040941,-500.0,0.0001,2]
[420815657,1776561040951,-151.0,0.0001,2]
[420815658,1776561040961,-151.0,0.0001,2]
[420815659,1776561040971,-500.0,0.0001,2]
[420815660,1776561040981,-151.0,0.0001,2]
[420815661,1776561040991,-500.0,0.0001,2]
[420815662,1776561041001,-500.0,0.0001,2]
[420815663,1776561041011,-500.0,0.0001,2]
[420815664,1776561041021,-500.0,0.0001,2]
[420815665,1776561041031,-500.0,0.0001,2]
[420815666,1776561041041,-500.0,0.0001,2]
[420815667,1776561041051,-500.0,0.0001,2]
[420815668,1776561041061,-500.0,0.0001,2]
[420815669,1776561041070,-500.0,0.0001,2]
[420815670,1776561041080,-500.0,0.0001,2]
[420815671,1776561041091,-500.0,0.0001,2]
[420815672,1776561041102,-589.26251993,0.0001,2]
[420815673,1776561041112,-21200.0,0.0001,3]
[420815674,1776561041121,-1337.30371513,0.0001,2]
[420815675,1776561041131,-151.0,0.0001,2]
[420815676,1776561041141,-1158.13948939,0.0001,2]
[420815677,1776561041151,-2000.0,0.0001,2]
[420815678,1776561041161,-2000.0,0.0001,2]
[420815679,1776561041171,-2000.0,0.0001,2]
[420815680,1776561041182,-2000.0,0.0001,2]
[420815681,1776561041191,-2000.0,0.0001,2]
[420815682,1776561041201,-2000.0,0.0001,2]
[420815683,1776561041211,-762.41821613,0.0001,2]
[420815684,1776561041221,-350.0,0.00010006,2]
[420815685,1776561041231,-2351.0,0.00010008,2]
[420815686,1776561041241,-350.0,0.00010009,2]
[420815687,1776561041251,-151.0,0.00010033,2]
[420815688,1776561041261,-151.0,0.00010033,2]
[420815689,1776561041270,-150.0,0.00010062,2]
[420815690,1776561041281,-240.024,0.00010062,2]
[420815691,1776561041292,-250.0,0.00010062,2]
[420815692,1776561041302,-250.0,0.00010062,2]
[420815693,1776561041318,-156.347,0.00010062,2]
[420815694,1776561041329,-193.852,0.00010062,2]
[420815695,1776561041339,-250.0,0.00010062,2]
[420815696,1776561041349,-215.256,0.00010062,2]
[420815697,1776561041359,-241.039,0.00010062,2]
[420815698,1776561041368,-182.0,0.00010062,2]
[420815699,1776561041379,-1454.96,0.00010062,2]
[420815700,1776561041391,-685.274,0.00010062,2]
[420815701,1776561041401,-3528.0,0.00010062,2]
[420815702,1776561041411,-1048.0,0.00010062,2]
[420815703,1776561041421,-151.319,0.00010062,2]
[420815704,1776561041432,-416.0,0.00010062,2]
[420815705,1776561041442,-3779.0,0.00010062,2]
[420815706,1776561041452,-300.0,0.00010062,2]
[420815707,1776561041462,-86896.7218953,0.00010065,2]
[420815708,1776561041471,-151.0,0.00010065,2]
[420815709,1776561041482,-151.0,0.00010065,2]
[420815710,1776561041491,-151.0,0.00010065,2]
[420815711,1776561041501,-619.801084,0.00010065,2]
[420815712,1776561041511,-619.801084,0.00010065,2]
[420815713,1776561041521,-619.801084,0.00010065,2]
[420815714,1776561041531,-619.801074,0.00010065,2]
[420815715,1776561041540,-500.0,0.00010091,2]
[420815716,1776561041550,-500.0,0.00010091,2]
[420815717,1776561041562,-1000.0,0.00010091,2]
[420815718,1776561041572,-500.0,0.00010091,2]
[420815719,1776561041582,-502.19224822,0.00010091,2]
[420815720,1776561041592,-350.0,0.00010124,2]
[420815721,1776561041602,-246.0,0.00010128,2]
[420815722,1776561041612,-433.0,0.00010129,2]
[420815723,1776561041622,-1000.0,0.00010264,2]
[420815724,1776561041632,-200.0,0.00010267,2]
[420815725,1776561041642,-1536.04360649,0.00010267,2]
[420815726,1776561041652,-194.72792766,0.00010267,2]
[420815727,1776561041662,-2000.0,0.00010274,2]
[420815728,1776561041671,-350.0,0.00010291,2]
[420815729,1776561041682,-57088.0877072,0.00010364,2]
[420815730,1776561041693,-150.0,0.0001051,2]
[420815731,1776561041704,-200.0,0.00010548,2]
[420815732,1776561041714,-1243.57659104,0.00010548,2]
[420815733,1776561041724,-3854.63397842,0.000106,2]
[420815734,1776561041734,-1578.11947933,0.000106,2]
[420815735,1776561041744,-467.79635705,0.000106,2]
[420815736,1776561041754,-16524.29104072,0.000106,2]
[420815737,1776561041765,-500.0,0.00010638,2]
[420815738,1776561041774,-1145739.02254973,0.000107,2]
[420815739,1776561042004,-58083.53858371,0.000107,2]
[420815740,1776561042016,-394.07604548,0.000107,2]
[420815755,1776561045368,-557.39357252,8.652e-05,2]
[420815756,1776561045378,-500.0,8.652e-05,2]
[420815757,1776561045387,-500.0,8.652e-05,2]
[420815758,1776561045397,-218.35785402,8.652e-05,2]
[420815759,1776561045406,-469.58913175,8.652e-05,2]
[420815760,1776561195763,181.35,0.00030411,120]
[420815761,1776561652578,328.62,0.00032844,120]
[420815762,1776562164665,264.0,0.000328,120]
[420815764,1776562217494,227.85033317,0.00032876,120]
[420815766,1776562232576,-1200.0,8.17e-05,2]
[420815767,1776562232588,-150.0,8.17e-05,2]
[420815768,1776562232598,-462944.14721118,8.171e-05,2]
[420815769,1776562232611,-27544.07732131,8.171e-05,2]
[420815770,1776562232624,-87310.75462694,8.171e-05,2]
[420815771,1776562232636,-90831.31792674,8.171e-05,2]
[420815772,1776562232648,-829.98709775,8.171e-05,2]
[420815774,1776562239706,-1134013.07851608,8.171e-05,2]
[420815776,1776562239716,-1528.0755,8.172e-05,2]
[420815778,1776562239725,-300.0,8.237e-05,2]
[420815780,1776562239735,-150.0,8.238e-05,2]
[420815782,1776562239744,-172.01,8.271e-05,2]
[420815784,1776562239754,-500.0,8.271e-05,2]
[420815786,1776562239764,-500.0,8.271e-05,2]
[420815788,1776562239773,-500.0,8.271e-05,2]
[420815790,1776562239783,-500.0,8.271e-05,2]
[420815792,1776562239792,-500.0,8.271e-05,2]
[420815794,1776562239803,-500.0,8.271e-05,2]
[420815796,1776562239812,-500.0,8.271e-05,2]
[420815798,1776562239822,-500.0,8.271e-05,2]
[420815800,1776562239832,-500.0,8.271e-05,2]
[420815802,1776562239841,-500.0,8.271e-05,2]
[420815804,1776562239851,-500.0,8.271e-05,2]
[420815806,1776562239861,-500.0,8.271e-05,2]
[420815808,1776562239870,-500.0,8.271e-05,2]
[420815810,1776562239879,-500.0,8.271e-05,2]
[420815812,1776562239889,-500.0,8.271e-05,2]
[420815814,1776562239898,-500.0,8.271e-05,2]
[420815816,1776562239908,-500.0,8.271e-05,2]
[420815819,1776562239918,-565.24541015,8.271e-05,2]
[420815820,1776562239927,-500.0,8.271e-05,2]
[420815823,1776562239936,-500.0,8.271e-05,2]
[420815825,1776562239945,-500.0,8.271e-05,2]
[420815827,1776562239954,-500.0,8.271e-05,2]
[420815829,1776562239964,-500.0,8.271e-05,2]
[420815831,1776562239973,-500.0,8.271e-05,2]
[420815833,1776562239982,-500.0,8.271e-05,2]
[420815835,1776562239991,-500.0,8.271e-05,2]
[420815837,1776562240001,-500.0,8.271e-05,2]
[420815839,1776562240010,-500.0,8.271e-05,2]
[420815841,1776562240019,-500.0,8.271e-05,2]
[420815843,1776562240029,-500.0,8.271e-05,2]
[420815845,1776562240038,-500.0,8.271e-05,2]
[420815847,1776562240048,-550.0,8.271e-05,2]
[420815848,1776562240057,-500.0,8.271e-05,2]
[420815849,1776562240067,-500.0,8.271e-05,2]
[420815850,1776562240077,-500.0,8.271e-05,2]
[420815851,1776562240086,-500.0,8.271e-05,2]
[420815852,1776562240096,-500.0,8.271e-05,2]
[420815853,1776562240105,-500.0,8.271e-05,2]
[420815854,1776562240115,-172.01,8.545e-05,2]
[420815855,1776562240124,-150.0,8.59e-05,2]
[420815856,1776562240135,-150.0,8.59e-05,2]
[420815857,1776562240144,-164.61255082,8.59e-05,2]
[420815858,1776562240154,-172.03,8.819e-05,2]
[420815859,1776562240164,-157.95,8.827e-05,2]
[420815860,1776562240173,-299.99,8.864e-05,2]
[420815861,1776562240182,-313.46,8.864e-05,2]
[420815862,1776562240191,-19999.99,8.864e-05,2]
[420815863,1776562240201,-150.99,8.864e-05,2]
[420815864,1776562240210,-120573.23358594,8.864e-05,2]